bitfinex-derivatives/quotes_ETHF0:USTF0_20241104
["timestamp","ask_amount","ask_price","bid_price","bid_amount"]
[1730756974078,0.42101,2376.8,2376.5,5.9672]
[1730756974281,3.2078,2377.0,2376.5,5.9672]
[1730756974780,3.2078,2377.0,2375.9,2.7904]
[1730756974781,7.415,2377.0,2376.1,3.2078]
[1730756974995,5.58638413,2377.2,2375.9,2.7904]
[1730756975187,3.2078,2376.7,2376.0,3.60187202]
[1730756975384,0.42108,2376.4,2376.0,0.42114]
[1730756975684,3.2078,2376.7,2375.9,5.9982]
[1730756975983,3.2078,2377.0,2375.9,5.9982]
[1730756976186,0.42103,2376.7,2376.1,0.42113]
[1730756976485,0.42104,2376.7,2376.0,3.68155812]
[1730756976689,3.2078,2377.0,2376.0,3.68155812]
[1730756977088,0.42105,2376.6,2376.0,3.68155812]
[1730756977283,3.2078,2377.0,2376.0,3.68155812]
[1730756977479,0.42107,2376.4,2376.0,3.68155812]
[1730756977686,3.2078,2376.5,2375.8,2.7594]
[1730756978185,0.42112,2376.2,2375.8,2.7594]
[1730756978489,0.42114,2376.1,2375.6,3.2078]
[1730756978685,0.42123,2375.5,2374.1,0.42147]
[1730756978887,1.05306,2375.6,2373.7,2.7409]
[1730756978888,3.2078,2374.7,2373.7,2.7409]
[1730756979085,7.74180413,2375.0,2373.7,2.7409]
[1730756979391,8.16332413,2373.9,2373.8,4.58537083]
[1730756979580,7.74180413,2373.9,2373.1,5.29739]
[1730756979888,7.74180413,2373.2,2373.1,5.29739]
[1730756980193,45.75564413,2373.2,2373.1,0.17568]
[1730756980391,0.42166,2373.1,2372.1,5.69466851]
[1730756980690,40.8,2373.2,2372.2,5.58004624]
[1730756980984,40.8,2373.2,2372.4,0.42178]
[1730756981187,40.8,2373.2,2372.7,0.01814]
[1730756981393,4.95571413,2372.8,2372.7,0.01814]
[1730756981587,3.2078,2372.9,2372.7,0.01814]
[1730756981887,5.9844,2373.1,2372.7,0.01814]
[1730756982091,3.62951,2372.8,2372.7,0.01814]
[1730756982388,45.33400413,2373.2,2372.7,0.01814]
[1730756982389,40.8,2373.2,2372.7,0.01814]
[1730756982888,3.2078,2373.6,2373.0,3.2078]
[1730756983078,4.53400413,2374.2,2373.1,3.2078]
[1730756983079,3.2078,2374.1,2373.1,3.2078]
[1730756983597,3.2078,2374.5,2373.7,3.2078]
[1730756983889,3.2078,2374.5,2373.6,3.2078]
[1730756984292,0.42146,2374.3,2373.3,6.21051]
[1730756984594,0.42162,2373.4,2372.7,0.01814]
[1730756984887,0.4217,2372.9,2372.7,0.01814]
[1730756985295,4.2144,2372.8,2372.7,0.01814]
[1730756985594,0.42171,2372.8,2372.7,0.01814]
[1730756985787,4.63611,2372.8,2372.7,0.01814]
[1730756986092,45.43611,2372.8,2372.7,0.01814]
[1730756986593,3.62948,2373.0,2372.7,0.01814]
[1730756986796,3.2078,2373.0,2372.7,0.01814]
[1730756987296,3.2078,2373.4,2372.7,0.01814]
[1730756987793,3.2078,2373.9,2372.8,12.83196395]
[1730756988096,3.2078,2373.9,2373.3,0.42162]
[1730756988387,3.2078,2373.9,2373.1,3.2078]
[1730756988794,3.2078,2374.5,2373.4,8.32543013]
[1730756988997,3.2078,2374.5,2373.4,3.62939]
[1730756989194,3.2078,2374.5,2373.6,4.53400413]
[1730756989495,3.2078,2375.0,2373.9,4.53400413]
[1730756989997,3.2078,2375.0,2374.1,3.2078]
[1730756990193,0.42134,2374.9,2374.1,3.2078]
[1730756990393,3.2078,2375.0,2374.1,3.2078]
[1730756990596,0.42135,2374.9,2374.1,3.2078]
[1730756990792,3.2078,2375.0,2374.1,3.2078]
[1730756990793,3.2078,2375.0,2374.2,0.42146]
[1730756991093,0.42131,2375.1,2374.2,5.03342315]
[1730756991296,0.42131,2375.1,2374.4,3.2078]
[1730756991596,3.2078,2375.3,2374.5,0.4214]
[1730756991893,3.62907,2375.3,2374.5,4.9269706]
[1730756992101,3.62907,2375.3,2374.5,4.5055706]
[1730756992491,0.42136,2374.8,2374.1,3.2078]
[1730756992684,3.62911,2375.1,2374.2,0.42146]
[1730756992888,3.62911,2375.1,2374.2,0.50127031]
[1730756993095,0.42139,2374.6,2374.2,0.07981031]
[1730756993396,3.2078,2374.7,2373.7,8.577]
[1730756993596,3.62918,2374.7,2373.9,0.42151]
[1730756993796,3.2078,2374.7,2373.9,4.79822075]
[1730756994095,3.2078,2374.4,2373.7,3.2078]
[1730756994293,0.42147,2374.2,2373.7,3.2078]
[1730756994491,3.2078,2374.4,2373.7,3.2078]
[1730756994695,3.2078,2374.4,2373.9,0.42152]
[1730756994908,6.23797,2374.8,2373.9,0.42152]
[1730756995196,3.2078,2374.4,2373.7,3.2078]
[1730756995392,0.42147,2374.2,2373.7,3.2078]
[1730756995699,0.42143,2374.4,2373.7,3.2078]
[1730756995900,0.42148,2374.1,2373.7,3.2078]
[1730756996194,3.2078,2374.4,2373.3,3.2078]
[1730756996195,0.42153,2373.9,2373.3,3.2078]
[1730756996395,0.42161,2373.4,2372.8,3.2078]
[1730756996701,3.2078,2373.6,2372.8,8.48519538]
[1730756996995,40.8,2373.5,2373.1,3.2078]
[1730756997390,0.42171,2372.8,2372.7,0.01814]
[1730756997593,0.42171,2372.8,2372.7,1e-05]
[1730756997594,3.62951,2372.8,2372.7,1e-05]
[1730756997791,12.37791413,2372.8,2372.7,1e-05]
[1730756997993,0.42184,2372.1,2371.6,0.42192]
[1730756998195,0.42184,2372.1,2371.7,3.2078]
[1730756998196,40.8,2372.0,2371.7,3.2078]
[1730756998395,40.8,2372.0,2371.5,0.42193]
[1730756998600,40.8,2372.0,2371.4,3.2078]
[1730756998902,3.2078,2372.4,2372.1,0.42183]
[1730756999099,0.4218,2372.3,2371.8,0.42189]
[1730756999400,40.8,2372.2,2372.0,0.42184]
[1730756999700,40.8,2372.2,2371.7,0.4219]
[1730756999901,40.8,2372.2,2371.4,3.2078]
[1730757000297,40.8,2372.2,2371.5,5.35466291]
[1730757000502,3.2078,2372.4,2372.0,0.42185]
[1730757001002,3.2078,2373.1,2372.1,7.423]
[1730757001295,3.2078,2373.1,2372.4,3.2078]
[1730757001502,3.62941,2373.4,2372.8,0.4217]
[1730757001706,3.62941,2373.4,2372.9,0.42169]
[1730757001894,3.2078,2373.9,2372.7,3.2078]
[1730757002093,2.5645,2374.3,2373.4,0.42159]
[1730757002094,3.62931,2374.0,2373.4,0.42159]
[1730757002404,3.2078,2374.0,2373.3,3.2078]
[1730757002796,3.62927,2374.2,2373.6,0.42156]
[1730757003194,3.2078,2374.5,2373.2,3.2078]
[1730757003395,3.2078,2374.5,2373.5,3.2078]
[1730757003600,0.42144,2374.4,2373.9,0.42151]
[1730757003803,2.5645,2375.3,2373.3,1.05406]
[1730757003804,4.53400413,2375.2,2373.8,3.2078]
[1730757004101,3.2078,2375.3,2374.0,8.03263203]
[1730757004302,3.62907,2375.3,2374.9,0.42133]
[1730757004605,3.62907,2375.3,2374.1,5.3923]
[1730757004606,7.4182,2375.3,2374.2,3.2078]
[1730757004799,0.42139,2374.6,2374.2,0.42145]
[1730757005023,1.05323,2375.2,2374.1,5.3923]
[1730757005024,3.2078,2374.7,2374.1,5.3923]
[1730757005298,3.2078,2374.7,2372.1,4.6266]
[1730757005299,3.2078,2374.4,2373.1,3.2078]
[1730757005503,0.42145,2374.3,2373.5,2.5921]
[1730757005696,0.42144,2374.4,2373.9,0.42151]
[1730757005895,40.8,2374.4,2373.5,2.5921]
[1730757006095,3.2078,2374.8,2374.0,4.71836673]
[1730757006302,3.2078,2374.2,2374.0,4.71836673]
[1730757006499,3.2078,2374.2,2373.5,2.5921]
[1730757006700,3.2078,2374.1,2373.7,0.42154]
[1730757007097,3.2078,2374.2,2373.6,4.95790526]
[1730757007308,0.42144,2374.4,2373.6,4.95790526]
[1730757007602,3.2078,2374.2,2373.6,8.16570526]
[1730757007808,44.0078,2374.7,2374.1,0.42148]
[1730757008107,44.0078,2374.7,2373.6,8.16570526]
[1730757008108,40.8,2374.7,2374.0,0.42149]
[1730757008494,0.42144,2374.4,2373.9,0.42151]
[1730757008701,40.8,2374.7,2373.6,8.16570526]
[1730757008904,3.2078,2373.7,2373.5,2.5921]
[1730757009099,0.42148,2374.2,2373.5,2.5921]
[1730757009505,3.2078,2374.4,2373.5,2.5921]
[1730757009701,3.2078,2374.9,2373.7,5.58789413]
[1730757009896,3.2078,2374.9,2373.7,4.53400413]
[1730757010103,4.53400413,2375.6,2374.3,0.42144]
[1730757010104,3.2078,2374.7,2374.3,0.42144]
[1730757010409,0.42145,2374.3,2373.9,0.42151]
[1730757010704,3.2078,2374.2,2373.5,2.5921]
[1730757010906,3.2078,2374.6,2373.5,5.7999]
[1730757011106,0.42144,2374.4,2373.9,0.42152]
[1730757011407,0.42151,2374.0,2373.6,4.87805796]
[1730757011709,3.2078,2374.0,2373.5,2.5921]
[1730757012011,0.42149,2374.1,2373.6,5.43270239]
[1730757012210,3.2078,2373.9,2373.6,5.01114239]
[1730757012403,3.2078,2374.1,2373.6,5.01114239]
[1730757012605,0.42151,2374.0,2373.6,5.01114239]
[1730757012899,3.2078,2374.5,2373.6,5.01114239]
[1730757013209,0.42144,2374.4,2374.0,0.4215]
[1730757013411,44.0078,2374.8,2373.8,3.2078]
[1730757013607,0.42126,2375.4,2375.0,0.42132]
[1730757013808,3.2078,2375.5,2374.7,3.2078]
[1730757013998,3.2078,2375.5,2374.5,5.3171]
[1730757014311,4.71201,2376.4,2374.5,4.42578045]
[1730757014312,3.62919,2374.6,2374.5,4.42578045]
[1730757014510,0.42144,2374.4,2373.9,0.4215]
[1730757014701,3.2078,2374.4,2374.1,0.42147]
[1730757014901,0.42142,2374.5,2374.1,0.42147]
[1730757015096,0.42142,2374.5,2374.0,0.42149]
[1730757015308,3.2078,2375.1,2374.4,0.42143]
[1730757015509,0.42137,2374.8,2374.4,0.42143]
[1730757015809,0.4215,2374.0,2373.9,0.13306202]
[1730757016006,0.4215,2374.0,2373.1,4.53400413]
[1730757016007,3.2078,2374.2,2373.1,3.2078]
[1730757016207,3.2078,2374.2,2373.2,12.66470413]
[1730757016412,3.2078,2374.2,2373.3,5.11763013]
[1730757016605,0.42148,2374.1,2373.4,3.2078]
[1730757016803,3.62927,2374.2,2373.8,0.42153]
[1730757017009,3.62927,2374.2,2373.2,13.71877413]
[1730757017010,3.2078,2374.2,2373.2,8.1307]
[1730757017307,0.42153,2373.9,2373.3,5.06438402]
[1730757017511,3.2078,2374.2,2373.3,5.06438402]
[1730757017711,0.4216,2373.5,2373.2,8.1307]
[1730757017906,3.2078,2373.9,2373.2,8.1307]
[1730757018103,0.42162,2373.3,2373.2,2.6658]
[1730757018305,3.2078,2373.4,2372.1,1.05458]
[1730757018306,3.2078,2373.4,2372.4,5.7772]
[1730757018509,3.2078,2373.4,2372.8,0.4217]
[1730757018711,0.42165,2373.2,2372.8,0.4217]
[1730757019016,0.42165,2373.2,2372.7,3.62952]
[1730757019310,3.2078,2373.9,2372.9,5.43720104]
[1730757019529,0.42158,2373.6,2373.0,3.2078]
[1730757019809,44.0078,2373.5,2373.2,0.42163]
[1730757020020,44.42939,2373.5,2373.1,5.59251951]
[1730757020215,44.0078,2373.5,2373.2,0.42164]
[1730757020515,3.62939,2373.5,2373.1,5.59251951]
[1730757022216,3.2078,2373.5,2372.6,3.62954]
[1730757022515,0.42169,2373.0,2372.7,5.40200137]
[1730757023218,3.2078,2373.8,2372.8,4.2144]
[1730757023412,3.2078,2373.8,2372.9,7.74180413]
[1730757023619,3.2078,2373.8,2372.6,3.2078]
[1730757023916,3.2078,2373.8,2372.2,2.16331121]
[1730757023917,3.2078,2372.9,2372.2,2.16331121]
[1730757024111,3.6296,2372.3,2372.2,1.23627121]
[1730757024314,7.74180413,2372.3,2371.8,2.19355663]
[1730757024517,3.2078,2371.9,2371.2,3.2078]
[1730757025020,3.2078,2372.2,2371.3,5.55079609]
[1730757025221,3.2078,2371.9,2371.3,5.55079609]
[1730757025422,3.2078,2372.5,2371.3,5.55079609]
[1730757025624,3.2078,2372.2,2371.3,5.55079609]
[1730757025924,0.42197,2371.4,2371.0,0.42203]
[1730757026119,1.05469,2371.9,2370.9,7.10858773]
[1730757026316,0.42203,2371.0,2370.9,3.90078773]
[1730757026515,3.2078,2371.4,2370.9,3.90078773]
[1730757026820,3.2078,2371.8,2371.0,5.45321476]
[1730757027122,3.2078,2371.3,2370.9,3.90078773]
[1730757027318,0.42203,2371.1,2370.9,3.90078773]
[1730757027624,0.42192,2371.7,2371.2,0.422]
[1730757027821,3.2078,2372.0,2371.0,5.54040134]
[1730757028114,0.42188,2371.9,2371.3,0.42196]
[1730757028318,0.42188,2371.9,2371.3,0.42197]
[1730757028816,3.2078,2372.0,2371.2,3.62979]
[1730757028817,0.42189,2371.8,2371.2,3.62979]
[1730757029117,0.42198,2371.3,2371.2,3.2078]
[1730757029714,3.2078,2371.8,2371.2,3.2078]
[1730757030225,0.42196,2371.5,2371.2,3.2078]
[1730757030428,0.42193,2371.6,2371.2,3.2078]
[1730757030816,0.42195,2371.5,2371.2,3.2078]
[1730757031020,3.2078,2371.8,2371.2,3.2078]
[1730757031218,21.06708,2375.0,2371.3,9.68121528]
[1730757031219,3.2078,2372.4,2371.3,9.68121528]
[1730757031525,3.2078,2372.4,2371.7,0.42189]
[1730757031526,0.42182,2372.2,2371.7,0.42189]
[1730757031726,3.2078,2372.4,2371.4,4.2627]
[1730757031931,3.62958,2372.4,2371.7,3.2078]
[1730757032229,3.2078,2372.4,2371.6,3.18254858]
[1730757032519,3.2078,2372.4,2371.7,3.74022612]
[1730757032723,3.2078,2372.4,2372.0,0.42185]
[1730757032927,3.6296,2372.4,2371.8,0.42189]
[1730757033227,3.6296,2372.4,2371.1,3.2078]
[1730757033228,0.42195,2371.5,2371.1,3.2078]
[1730757033525,0.42191,2371.7,2371.1,3.2078]
[1730757033715,0.42193,2371.6,2371.1,3.6298]
[1730757033914,3.62972,2371.7,2371.2,0.42199]
[1730757034224,3.62966,2372.0,2371.5,0.42193]
[1730757034423,3.2078,2372.0,2371.2,5.40103174]
[1730757034619,3.2078,2372.0,2371.3,0.42198]
[1730757034620,3.62966,2372.0,2371.3,0.42198]
[1730757034926,3.62966,2372.0,2371.2,5.40103174]
[1730757034927,3.62966,2372.0,2371.5,0.42193]
[1730757035128,3.62966,2372.0,2371.2,5.40103174]
[1730757035323,3.62966,2372.0,2371.5,0.42193]
[1730757035324,3.2078,2372.0,2371.5,0.42193]
[1730757035632,3.2078,2372.3,2371.4,3.2078]
[1730757035832,0.42178,2372.5,2372.0,0.42184]
[1730757036124,3.2078,2372.6,2372.0,0.42184]
[1730757036334,0.42179,2372.4,2372.0,0.42184]
[1730757036630,0.42179,2372.4,2371.7,3.2078]
[1730757036831,40.8,2373.0,2371.7,3.2078]
[1730757037038,3.2078,2372.8,2371.8,8.2638701]
[1730757037324,0.42174,2372.7,2371.8,10.8381701]
[1730757037526,40.8,2373.0,2372.1,0.42183]
[1730757037527,0.42177,2372.5,2372.1,0.42183]
[1730757037920,3.2078,2372.6,2371.8,10.8381701]
[1730757038227,0.42177,2372.5,2372.0,0.42184]
[1730757038631,3.2078,2372.6,2372.0,3.2078]
[1730757038841,3.2078,2372.6,2372.2,0.42181]
[1730757039022,0.42193,2371.6,2371.1,0.42201]
[1730757039323,3.2078,2371.5,2370.9,3.2078]
[1730757039525,0.42197,2371.4,2371.0,3.21032]
[1730757039729,3.2078,2371.5,2371.0,2.7883]
[1730757040025,0.42193,2371.6,2371.2,0.422]
[1730757040420,3.62975,2371.5,2371.1,0.42201]
[1730757040622,3.2078,2371.5,2371.2,0.422]
[1730757040929,4.53400413,2373.0,2371.5,1.05486]
[1730757041120,4.53400413,2373.0,2371.6,3.2078]
[1730757041324,1.05434,2372.7,2371.9,3.2078]
[1730757041524,0.42185,2372.0,2371.9,3.2078]
[1730757041923,5.58833413,2372.7,2371.9,3.2078]
[1730757041924,0.42184,2372.1,2371.9,3.2078]
[1730757042232,40.8,2372.9,2371.9,3.2078]
[1730757042433,40.8,2372.9,2371.6,1.05478]
[1730757042434,0.42179,2372.4,2372.2,3.2078]
[1730757042621,0.42176,2372.6,2372.2,3.2078]
[1730757042827,0.42171,2372.8,2372.2,3.62961]
[1730757043123,0.42176,2372.6,2372.3,0.4218]
[1730757043329,0.42176,2372.6,2372.2,3.2078]
[1730757043330,0.42177,2372.5,2372.2,3.62961]
[1730757043635,0.42177,2372.5,2371.0,9.43239413]
[1730757043636,0.42192,2371.7,2371.4,0.42196]
[1730757043831,1.05455,2372.2,2371.3,3.2078]
[1730757043832,0.4219,2371.8,2371.3,3.2078]
[1730757044038,0.4219,2371.8,2371.5,0.42194]
[1730757044230,3.2078,2372.2,2371.3,3.2078]
[1730757044725,7.74180413,2371.9,2371.0,3.2078]
[1730757044925,0.42198,2371.3,2371.0,3.62982]
[1730757045125,1.05478,2371.7,2371.0,3.62982]
[1730757045331,2.6845,2371.8,2371.0,3.2078]
[1730757045531,0.42193,2371.6,2371.0,3.2078]
[1730757045735,40.8,2371.7,2371.0,3.2078]
[1730757045936,0.42193,2371.6,2371.4,0.42195]
[1730757046237,40.8,2371.7,2371.0,3.2078]
[1730757046436,0.42193,2371.6,2371.0,3.2078]
[1730757046736,0.42201,2371.1,2371.0,3.2078]
[1730757047134,0.42193,2371.6,2371.0,3.2078]
[1730757047337,44.0078,2371.7,2371.0,3.2078]
[1730757047630,0.42197,2371.4,2371.1,0.42201]
[1730757047834,0.42194,2371.6,2371.3,0.42197]
[1730757048035,40.8,2371.7,2371.0,3.2078]
[1730757048235,40.8,2371.7,2371.2,0.422]
[1730757048434,40.8,2371.7,2371.0,3.2078]
[1730757048633,7.34160413,2372.5,2371.4,3.2078]
[1730757048944,0.42178,2372.5,2371.7,3.2078]
[1730757049140,0.42178,2372.5,2371.5,1.05486]
[1730757049141,0.42178,2372.5,2372.3,0.4218]
[1730757049433,0.42178,2372.5,2372.0,3.2078]
[1730757049434,0.42174,2372.7,2372.5,0.42176]
[1730757049637,0.42174,2372.7,2372.0,3.2078]
[1730757049638,3.2078,2372.9,2372.1,1.0546]
[1730757049825,0.42172,2372.8,2372.3,3.2078]
[1730757050024,3.2078,2372.9,2372.3,3.2078]
[1730757050228,3.2078,2372.9,2372.6,0.42174]
[1730757050229,0.42172,2372.8,2372.6,0.42174]
[1730757050432,4.2144,2372.8,2372.2,2.7226]
[1730757050631,3.2078,2372.9,2372.2,0.42182]
[1730757050632,0.42178,2372.5,2372.2,0.42182]
[1730757050837,0.42179,2372.4,2372.1,3.2078]
[1730757051036,0.42181,2372.3,2372.1,3.2078]
[1730757051228,0.42182,2372.2,2372.1,3.2078]
[1730757051629,3.2078,2372.5,2372.1,3.2078]
[1730757051829,0.42182,2372.2,2372.1,3.2078]
[1730757052334,3.60059,2372.8,2372.3,0.42179]
[1730757052335,0.42176,2372.6,2372.3,0.42179]
[1730757052635,0.42176,2372.6,2372.1,3.2078]
[1730757052636,0.42182,2372.2,2372.1,3.2078]
[1730757054125,3.2078,2372.7,2372.1,3.2078]
[1730757054338,3.2078,2372.7,2371.8,3.2078]
[1730757054339,7.74180413,2372.7,2371.8,3.2078]
[1730757054534,0.42187,2371.9,2371.8,3.2078]
[1730757054835,3.2078,2372.1,2371.4,3.2078]
[1730757055141,0.42194,2371.6,2371.4,3.2078]
[1730757055335,0.42191,2371.7,2371.5,0.42194]
[1730757055631,0.4219,2371.8,2371.6,0.42192]
[1730757056233,0.42191,2371.7,2371.5,0.42193]
[1730757056428,40.8,2372.0,2371.4,3.2078]
[1730757056838,40.8,2372.0,2371.4,3.62975]
[1730757057035,0.42194,2371.5,2371.4,3.2078]
[1730757057333,40.8,2372.0,2371.1,0.42201]
[1730757057334,1.05476,2371.8,2371.1,0.42201]
[1730757057544,0.42199,2371.3,2371.1,0.42201]
[1730757057838,0.42199,2371.3,2371.0,0.42202]
[1730757058042,1.05476,2371.8,2370.9,7.4254]
[1730757058043,3.2078,2371.7,2370.9,7.4254]
[1730757058236,1.05476,2371.8,2370.9,7.4254]
[1730757058237,1.05476,2371.8,2370.9,3.2078]
[1730757058535,46.5859,2372.0,2370.9,3.2078]
[1730757058730,0.422,2371.2,2370.9,3.62984]
[1730757058931,0.42203,2371.0,2370.9,3.2078]
[1730757059634,0.42203,2371.1,2370.9,3.2078]
[1730757059829,0.42203,2371.0,2370.9,3.2078]
[1730757060036,3.2078,2371.5,2370.9,3.2078]
[1730757060243,3.2078,2371.5,2371.0,0.42202]
[1730757060439,0.42203,2371.0,2370.9,3.2078]
[1730757060740,1.05478,2371.7,2370.9,3.2078]
[1730757061044,0.42203,2371.1,2370.9,3.2078]
[1730757061235,0.42203,2371.1,2370.9,3.62985]
[1730757061436,0.42203,2371.1,2370.9,3.2078]
[1730757061742,0.42203,2371.1,2370.9,0.42205]
[1730757061933,0.42203,2371.1,2370.6,3.2078]
[1730757061934,3.2078,2371.3,2370.6,3.2078]
[1730757062131,0.4221,2370.7,2370.5,2.7113]
[1730757062338,0.42207,2370.8,2370.6,3.2078]
[1730757063144,0.42208,2370.8,2370.6,3.2078]
[1730757063535,40.8,2370.7,2370.6,3.2078]
[1730757064843,2.5781,2372.0,2370.6,17.56741334]
[1730757065147,2.5781,2372.0,2371.2,3.2078]
[1730757065148,3.2078,2371.8,2371.2,3.2078]
[1730757065344,0.42199,2371.3,2371.0,0.42202]
[1730757065540,41.85469,2371.9,2370.8,3.2078]
[1730757065839,3.2078,2371.8,2371.1,3.2078]
[1730757066041,0.42197,2371.4,2371.1,3.6298]
[1730757066239,40.8,2371.9,2371.1,3.2078]
[1730757066439,44.0078,2371.9,2371.1,3.2078]
[1730757066638,44.0078,2371.9,2370.8,3.2078]
[1730757066639,40.8,2371.9,2370.8,3.2078]
[1730757066832,40.8,2371.9,2371.1,3.2078]
[1730757067148,40.8,2371.9,2371.3,0.42197]
[1730757067444,0.42194,2371.6,2371.3,0.42197]
[1730757067643,40.8,2371.9,2371.3,0.42197]
[1730757067844,40.8,2371.9,2371.1,3.2078]
[1730757068142,4.26234,2372.3,2371.1,3.2078]
[1730757068442,4.26234,2372.3,2370.9,1.05511]
[1730757068443,3.2078,2372.0,2371.4,3.2078]
[1730757068747,3.2078,2372.0,2371.4,3.62975]
[1730757068748,0.42192,2371.7,2371.4,3.62975]
[1730757068944,0.42193,2371.6,2371.4,3.2078]
[1730757069646,5.2920322,2372.3,2371.4,3.2078]
[1730757069841,0.42194,2371.6,2371.4,3.2078]
[1730757070040,40.8,2371.9,2371.4,3.2078]
[1730757070240,0.42191,2371.7,2371.5,0.42194]
[1730757070547,0.42194,2371.5,2371.2,0.42199]
[1730757070852,40.8,2371.9,2371.2,3.2078]
[1730757071147,40.8,2371.9,2371.1,3.2078]
[1730757071342,40.8,2371.9,2371.5,0.42194]
[1730757071343,0.42191,2371.7,2371.5,0.42194]
[1730757071541,40.8,2371.9,2371.4,3.2078]
[1730757071741,0.42183,2372.2,2371.7,3.2078]
[1730757072045,0.42188,2371.9,2371.7,3.2078]
[1730757072345,0.42196,2371.5,2371.3,3.2078]
[1730757072536,5.317,2372.1,2370.8,4.28517514]
[1730757072734,0.42203,2371.1,2370.8,3.2078]
[1730757072945,3.2078,2371.8,2370.8,3.2078]
[1730757072946,3.2078,2371.8,2371.2,0.42198]
[1730757073338,0.42196,2371.5,2370.8,4.26296]
[1730757073642,1.0297122,2372.1,2370.8,3.2078]
[1730757073836,3.2078,2371.5,2370.8,3.2078]
[1730757074041,3.2078,2371.8,2370.8,3.2078]
[1730757074341,0.42201,2371.2,2371.0,0.42203]
[1730757074747,0.42201,2371.2,2371.0,4.63963]
[1730757075451,0.42201,2371.2,2370.8,3.2078]
[1730757075452,3.2078,2371.8,2371.1,4.2176]
[1730757075650,0.42199,2371.3,2371.1,0.422]
[1730757075950,0.42199,2371.3,2370.8,3.2078]
[1730757075951,0.422,2371.2,2371.0,0.42202]
[1730757076160,0.42203,2371.0,2370.8,3.62986]
[1730757076442,1.05487,2371.5,2370.8,3.2078]
[1730757076647,1.05487,2371.5,2370.9,0.42204]
[1730757076849,4.2375122,2372.0,2370.8,3.2078]
[1730757077145,0.42192,2371.7,2371.4,3.2078]
[1730757077349,3.2078,2372.0,2371.7,0.42189]
[1730757077650,0.42188,2371.9,2371.7,0.42189]
[1730757077844,0.42187,2371.9,2371.4,3.2078]
[1730757078042,3.2078,2372.0,2371.4,3.62975]
[1730757078243,0.42193,2371.6,2371.4,3.62975]
[1730757078436,0.4219,2371.8,2371.6,0.42192]
[1730757078643,3.2078,2372.0,2371.4,3.2078]
[1730757078945,0.4219,2371.8,2371.6,0.42191]
[1730757079249,3.2078,2372.0,2371.4,3.2078]
[1730757079448,3.2078,2371.9,2371.1,3.2078]
[1730757079639,4.26249,2371.9,2371.1,3.2078]
[1730757079842,0.42197,2371.4,2371.1,3.2078]
[1730757080048,0.42197,2371.4,2371.2,0.42198]
[1730757080250,4.26249,2371.9,2371.1,3.2078]
[1730757080546,0.42197,2371.4,2371.2,0.42198]
[1730757080750,0.42197,2371.4,2371.1,3.2078]
[1730757080942,1.05473,2371.8,2371.1,3.2078]
[1730757081142,0.42205,2371.0,2370.8,3.62986]
[1730757081350,0.42205,2370.9,2370.8,3.2078]
[1730757081649,4.26274,2371.4,2370.8,3.2078]
[1730757081650,3.2078,2371.4,2370.8,3.2078]
[1730757081851,0.42203,2371.1,2370.9,0.42204]
[1730757082254,0.42204,2371.0,2370.8,3.62986]
[1730757082446,40.8,2371.3,2370.8,3.2078]
[1730757082447,0.42205,2370.9,2370.8,3.2078]
[1730757083245,41.85497,2371.3,2370.7,2.6885]
[1730757083453,41.85497,2371.3,2370.1,1.07737514]
[1730757083454,7.74180413,2370.8,2370.1,1.07737514]
[1730757083755,7.74180413,2370.8,2369.2,6.26516176]
[1730757083756,0.42219,2370.1,2370.0,0.5689]
[1730757084046,5.58949413,2370.1,2369.2,3.2078]
[1730757084251,0.42224,2369.9,2369.3,0.42233]
[1730757084455,40.8,2369.9,2369.3,5.51736151]
[1730757084651,8.75400413,2369.8,2368.9,3.2078]
[1730757084847,0.42242,2368.9,2368.6,0.42246]
[1730757085045,1.05576,2369.5,2368.6,3.2078]
[1730757085350,3.2078,2369.7,2368.7,8.72516151]
[1730757085351,0.42239,2369.0,2368.7,8.72516151]
[1730757085550,1.05571,2369.6,2368.0,3.2078]
[1730757085551,7.74180413,2369.1,2368.0,3.2078]
[1730757085743,4.2208,2369.6,2367.7,3.2078]
[1730757085744,4.53400413,2368.4,2367.7,3.2078]
[1730757085942,5.36883804,2368.9,2367.7,3.2078]
[1730757085943,3.2078,2368.6,2367.7,3.2078]
[1730757086146,0.42245,2368.7,2368.0,0.42256]
[1730757086347,2.7904,2369.0,2368.0,3.2078]
[1730757086549,2.7904,2369.0,2367.8,0.05349598]
[1730757086550,7.74180413,2368.5,2367.6,3.2078]
[1730757086744,7.74180413,2368.5,2366.6,2.69276141]
[1730757086745,4.53400413,2367.9,2367.3,3.2078]
[1730757087056,2.7904,2367.8,2367.3,3.2078]
[1730757087451,0.42265,2367.6,2367.3,3.2078]
[1730757087648,0.42267,2367.4,2367.3,3.2078]
[1730757087948,0.42267,2367.4,2366.4,1.95879912]
[1730757087949,0.4228,2366.7,2366.6,3.2008]
[1730757088151,0.42289,2366.2,2366.1,1.95537379]
[1730757088451,0.42289,2366.2,2366.1,0.61396379]
[1730757088452,41.22289,2366.2,2366.1,0.61396379]
[1730757088750,40.8,2366.2,2366.1,5.26167379]
[1730757088956,3.2078,2367.0,2366.5,0.42283]
[1730757089148,3.2078,2367.0,2366.1,4.83876379]
[1730757089149,3.2078,2367.4,2367.1,4.2248]
[1730757089349,4.53400413,2367.2,2366.3,0.02048]
[1730757089552,3.2078,2367.1,2366.9,4.2248]
[1730757089851,3.2078,2367.0,2366.9,4.2248]
[1730757090053,3.2078,2367.0,2366.3,0.02048]
[1730757090356,40.8,2367.3,2366.9,4.2248]